bitfinex-derivatives/quotes_BNBF0:USTF0_20250413
["timestamp","ask_amount","ask_price","bid_price","bid_amount"]
[1744506695311,0.30768531,597.85,596.81,0.33511502]
[1744506695504,0.30768531,597.84,596.81,0.33511502]
[1744506695710,0.30768531,597.83,596.81,0.33511502]
[1744506696009,0.30768531,597.82,596.81,0.33511502]
[1744506696211,0.30768531,597.85,596.81,0.33511502]
[1744506696410,0.30768531,597.84,596.81,0.33511502]
[1744506696610,0.30768531,597.9,596.81,0.33511502]
[1744506696811,0.30768531,597.89,596.81,0.33511502]
[1744506697009,0.30768531,597.9,596.81,0.33511502]
[1744506697507,0.29137798,597.89,596.81,0.33511502]
[1744506697711,0.30768531,597.88,596.81,0.33511502]
[1744506698007,0.30768531,597.88,596.81,1.32211502]
[1744506698208,0.30768531,597.88,596.81,1.95711502]
[1744506698811,0.30768531,597.88,596.81,2.58411502]
[1744506699412,0.30768531,597.9,596.81,2.58411502]
[1744506699613,0.3344985,597.91,596.81,2.58411502]
[1744506699810,0.30768127,597.9,596.81,2.58411502]
[1744506700513,0.29137554,597.89,596.81,2.58411502]
[1744506700714,0.30768127,597.88,596.81,2.58411502]
[1744506701409,0.29137554,597.89,596.81,2.58411502]
[1744506701614,0.30768088,597.88,596.81,3.98211502]
[1744506702412,0.30768088,597.9,596.81,3.98211502]
[1744506702612,0.3344985,597.91,596.81,3.98211502]
[1744506702613,0.30768088,597.89,596.81,3.98211502]
[1744506702913,0.30768088,597.9,596.81,3.98211502]
[1744506703113,0.3344985,597.91,596.81,3.98211502]
[1744506703312,0.30768128,597.9,596.81,3.98211502]
[1744506703513,0.59902266,597.9,596.81,3.98211502]
[1744506703712,0.30768128,597.89,596.81,4.48911502]
[1744506704009,0.30768128,597.89,596.82,0.29380274]
[1744506704416,0.30768128,597.89,596.83,0.33510379]
[1744506704715,0.30768128,597.89,596.84,0.29380274]
[1744506705416,0.30768128,597.89,596.85,0.465]
[1744506706317,0.29134138,597.9,596.86,0.33508695]
[1744506706511,0.30766967,597.89,596.86,0.33508695]
[1744506706815,0.30766967,597.89,596.87,0.29368245]
[1744506707211,0.30766967,597.89,596.88,0.33507572]
[1744506708218,0.30766967,597.89,596.89,0.29365509]
[1744506708410,0.30766967,598.14,596.9,0.33506449]
[1744506708810,0.30766967,598.25,596.9,0.33506449]
[1744506709011,0.33431398,598.24,596.9,0.33506449]
[1744506709211,0.30766967,598.23,596.9,0.33506449]
[1744506709418,0.59896716,598.23,596.9,0.33506449]
[1744506709717,0.6419436,598.22,596.9,0.33506449]
[1744506709916,0.30761844,598.21,596.9,0.33506449]
[1744506711920,0.30761844,598.21,596.9,0.63306449]
[1744506712420,0.29129505,598.2,596.9,0.63306449]
[1744506712919,0.30761068,598.19,596.9,0.63306449]
[1744506714322,0.33432516,598.22,596.9,0.63306449]
[1744506714619,0.30761549,598.21,596.9,0.63306449]
[1744506715419,0.29128042,598.2,596.9,0.63306449]
[1744506715619,0.30761549,598.19,596.9,0.63306449]
[1744506717416,0.30761549,598.19,596.9,1.27606449]
[1744506717622,0.59889835,598.18,596.9,1.27606449]
[1744506717923,0.30761549,598.17,596.9,1.27606449]
[1744506718117,0.30761549,598.17,596.91,0.29356512]
[1744506718322,0.30761549,598.17,596.92,0.33505327]
[1744506719524,0.30761549,598.17,596.93,0.29357116]
[1744506719724,0.30761549,598.16,596.94,0.33504204]
[1744506719924,0.30761549,598.15,596.95,0.29357116]
[1744506720126,0.30761549,598.17,596.96,0.33503082]
[1744506720324,0.30761549,598.16,596.97,0.29357116]
[1744506720525,0.30761549,598.15,596.98,0.33501959]
[1744506720719,0.30761549,598.14,596.99,0.29357116]
[1744506720925,0.30761549,598.21,597.0,0.33500837]
[1744506721128,0.30761549,598.2,597.0,0.33500837]
[1744506721322,0.30761549,598.19,597.0,0.33500837]
[1744506721524,0.29128408,598.19,597.0,0.33500837]
[1744506721828,0.30761549,598.18,597.0,0.33500837]
[1744506722929,0.30761549,598.18,597.01,0.664]
[1744506723427,0.30761549,598.21,597.02,0.61]
[1744506723627,0.29127189,598.17,597.02,0.61]
[1744506723829,0.30761549,598.16,597.02,0.61]
[1744506725630,0.30761549,598.16,597.02,1.356]
[1744506726630,0.59890688,598.15,597.02,1.356]
[1744506726831,0.30761549,598.14,597.02,1.356]
[1744506727331,0.30761549,598.14,597.02,2.114]
[1744506728034,0.29129139,598.15,597.02,2.114]
[1744506728233,0.30761001,598.14,597.02,2.114]
[1744506729432,0.30761001,598.19,597.02,2.114]
[1744506729734,0.30760643,598.18,597.02,2.114]
[1744506730027,0.30760643,598.17,597.02,2.412]
[1744506730232,0.30760643,598.57,597.02,2.412]
[1744506730433,0.29124142,598.16,597.02,2.412]
[1744506730633,0.30760643,598.15,597.02,2.412]
[1744506731134,0.30760643,598.57,597.02,3.107]
[1744506731334,1.27119983,598.54,597.02,3.107]
[1744506731533,0.3076068,598.53,597.02,3.107]
[1744506731732,0.3076068,598.52,597.02,3.107]
[1744506731935,0.3076068,598.51,597.02,3.791]
[1744506732131,0.3076068,598.5,597.02,3.791]
[1744506732334,0.3076068,598.49,597.02,3.791]
[1744506732534,0.3076068,598.48,597.02,3.791]
[1744506732734,0.3076068,598.47,597.02,3.791]
[1744506732936,0.30760525,598.46,597.02,3.791]
[1744506733136,0.30760525,598.45,597.02,3.791]
[1744506733338,0.30760525,598.44,597.02,3.791]
[1744506733538,0.30760525,598.43,597.02,3.791]
[1744506733836,0.30760525,598.42,597.02,4.412]
[1744506734039,0.30760525,598.41,597.02,4.412]
[1744506734238,0.30760525,598.4,597.02,4.412]
[1744506734439,1.27119983,598.5,597.02,4.412]
[1744506734638,0.30760344,598.49,597.02,4.412]
[1744506734842,0.30760344,598.48,597.02,4.412]
[1744506735040,0.30760344,598.47,597.02,4.412]
[1744506735243,0.30760344,598.46,597.02,4.412]
[1744506735438,0.30760344,598.45,597.02,4.412]
[1744506735641,0.30760344,598.44,597.02,4.412]
[1744506735842,0.30760344,598.43,597.02,4.412]
[1744506736140,0.29123654,598.46,597.02,4.412]
[1744506736141,0.30759344,598.42,597.02,4.412]
[1744506736341,0.30759344,598.41,597.02,4.412]
[1744506736541,0.30759344,598.4,597.02,4.412]
[1744506736744,1.27119983,598.23,597.02,4.412]
[1744506736944,0.30759344,598.22,597.02,4.412]
[1744506737242,1.27119983,598.23,597.02,4.412]
[1744506738348,1.27119983,598.23,597.02,5.125]
[1744506739146,0.3075865,598.22,597.02,5.125]
[1744506739550,0.3075865,598.3,597.02,5.125]
[1744506740953,1.27119983,598.31,597.02,5.125]
[1744506741148,0.30757442,598.3,597.02,5.125]
[1744506741954,0.30757442,598.29,597.02,5.125]
[1744506742155,0.30757442,598.45,597.02,5.125]
[1744506742352,1.27119983,598.46,597.02,5.125]
[1744506742353,0.30757442,598.44,597.02,5.125]
[1744506742548,0.29123898,598.28,597.02,5.125]
[1744506742752,0.30757442,598.27,597.02,5.125]
[1744506742949,0.30757442,598.45,597.02,5.125]
[1744506743150,0.29124264,598.27,597.02,5.125]
[1744506743354,0.30757442,598.26,597.02,5.125]
[1744506743654,0.30757442,598.25,597.02,5.125]
[1744506744354,0.30757442,598.24,597.02,5.125]
[1744506744547,0.30757442,598.23,597.02,5.125]
[1744506744749,0.30757442,598.22,597.02,5.125]
[1744506745054,0.30757442,598.21,597.02,5.125]
[1744506745253,0.30757442,598.34,597.02,5.125]
[1744506745549,0.29126945,598.21,597.02,5.125]
[1744506745755,0.30757442,598.2,597.02,5.125]
[1744506745950,0.30757442,598.34,597.02,5.125]
[1744506746151,0.30757442,598.33,597.02,5.125]
[1744506746349,0.30757442,598.34,597.02,5.125]
[1744506746552,0.30757442,598.33,597.02,5.125]
[1744506746753,0.30757442,598.32,597.02,5.125]
[1744506746950,0.30757442,598.34,597.02,5.125]
[1744506747151,0.29126945,598.32,597.02,5.125]
[1744506747353,0.29126945,598.32,597.02,5.874]
[1744506747555,0.30757442,598.31,597.02,5.874]
[1744506747756,0.30757442,598.3,597.02,5.874]
[1744506747957,0.30757442,598.29,597.02,5.874]
[1744506748158,0.30757442,598.28,597.02,5.874]
[1744506748358,0.30757442,598.27,597.02,5.874]
[1744506748559,0.30757442,598.26,597.02,5.874]
[1744506748758,0.29126945,598.32,597.02,5.874]
[1744506748759,0.30757442,598.25,597.02,5.874]
[1744506749059,0.30765771,598.24,597.02,5.874]
[1744506749258,0.30765771,598.23,597.02,5.874]
[1744506749459,0.30765771,598.22,597.02,5.874]
[1744506749660,0.30765771,598.21,597.02,5.874]
[1744506749859,0.30765771,598.2,597.02,5.874]
[1744506750056,0.30765771,598.19,597.02,5.874]
[1744506750259,0.30765771,598.18,597.02,5.874]
[1744506750459,0.30765771,598.17,597.02,5.874]
[1744506750659,0.30765771,598.16,597.02,5.874]
[1744506750861,0.30765771,598.15,597.02,5.874]
[1744506751059,0.30765771,598.14,597.02,5.874]
[1744506751261,0.30765771,598.13,597.02,5.874]
[1744506751459,0.30765771,598.17,597.02,5.874]
[1744506751664,0.30765771,598.16,597.02,5.874]
[1744506751863,0.30765771,598.15,597.02,5.874]
[1744506752064,0.30765771,598.14,597.02,5.874]
[1744506752359,0.30765771,598.13,597.02,5.874]
[1744506752559,0.30765771,598.17,597.02,5.874]
[1744506752764,0.30765771,598.16,597.02,5.874]
[1744506752959,0.30765771,598.15,597.02,5.874]
[1744506753159,0.30765771,598.14,597.02,5.874]
[1744506753362,0.30765771,598.13,597.02,5.874]
[1744506753564,0.30765771,598.12,597.02,5.874]
[1744506753763,0.30765771,598.11,597.02,5.874]
[1744506753963,0.30765771,598.1,597.02,5.874]
[1744506754166,0.30765771,598.09,597.02,5.874]
[1744506754365,0.30765771,598.08,597.02,5.874]
[1744506754665,0.30765771,598.07,597.02,5.874]
[1744506754866,0.30765771,598.06,597.02,5.874]
[1744506755161,0.30765771,598.05,597.03,0.33499154]
[1744506755365,1.27119983,598.06,597.03,0.33499154]
[1744506755366,0.30765771,598.04,597.03,0.33499154]
[1744506755566,0.30765771,598.03,597.03,0.33499154]
[1744506755766,0.30765771,598.02,597.03,0.33499154]
[1744506756065,0.30765771,598.01,597.03,0.33499154]
[1744506756265,0.30765771,598.0,597.03,0.33499154]
[1744506756464,0.30765771,597.99,597.03,0.33499154]
[1744506756662,0.30765771,597.98,597.03,0.33499154]
[1744506756961,0.30765771,597.99,597.03,0.33499154]
[1744506757159,0.30765771,597.98,597.03,0.33499154]
[1744506757361,0.30765771,597.99,597.03,0.33499154]
[1744506757565,0.30765771,597.98,597.03,0.33499154]
[1744506757866,0.30765771,597.97,597.03,0.63299154]
[1744506758068,0.30765771,597.96,597.03,1.35099154]
[1744506758267,0.30765771,597.95,597.03,1.96599154]
[1744506758562,0.30765771,597.94,597.03,4.28199154]
[1744506758770,0.30765771,597.99,597.03,4.28199154]
[1744506758968,0.30765771,597.98,597.03,4.28199154]
[1744506759169,0.30765771,597.99,597.03,4.28199154]
[1744506759362,0.30765771,597.98,597.03,4.28199154]
[1744506759566,0.30765771,598.09,597.03,4.81099154]
[1744506759763,0.30765771,598.08,597.03,4.81099154]
[1744506760069,0.30765771,598.07,597.03,4.81099154]
[1744506760268,0.30765771,598.06,597.03,4.81099154]
[1744506760469,0.30765771,598.05,597.03,4.81099154]
[1744506760670,0.30765771,598.04,597.03,4.81099154]
[1744506760864,0.30765771,598.03,597.03,4.81099154]
[1744506761064,0.30765771,598.02,597.03,4.81099154]
[1744506761267,0.30765771,598.01,597.03,4.81099154]
[1744506761468,0.30765771,598.0,597.03,4.81099154]
[1744506761768,0.30765771,597.99,597.03,4.81099154]
[1744506761971,0.30765771,597.98,597.03,4.81099154]
[1744506762170,0.30765771,597.97,597.03,4.81099154]
[1744506762365,0.30765771,597.96,597.03,4.81099154]
[1744506762569,0.30765771,597.95,597.03,4.81099154]
[1744506762766,0.30765771,598.09,597.03,4.81099154]
[1744506763072,0.30765771,598.08,597.03,4.81099154]
[1744506763273,0.30767085,598.07,597.03,4.81099154]
[1744506763474,0.30767085,598.06,597.03,4.81099154]
[1744506763674,0.30767085,598.05,597.03,4.81099154]
[1744506763873,0.29132309,598.07,597.03,4.81099154]
[1744506763874,0.30767085,598.04,597.03,4.81099154]
[1744506764073,0.30767085,598.03,597.03,4.81099154]
[1744506764274,0.30767085,598.02,597.03,4.81099154]
[1744506764573,0.30767085,598.01,597.03,4.81099154]
[1744506764873,0.30769464,598.0,597.03,5.33699154]
[1744506765073,0.30769464,597.99,597.03,5.33699154]
[1744506765276,0.30769464,597.98,597.03,5.33699154]
[1744506765569,0.30769464,597.97,597.03,5.33699154]
[1744506765773,1.27119983,598.12,597.03,5.33699154]
[1744506765774,0.30769464,597.96,597.03,5.33699154]
[1744506766073,0.30769464,597.95,597.03,5.33699154]
[1744506766470,0.5990348,597.94,597.03,5.33699154]
[1744506766674,0.30769464,597.93,597.03,5.33699154]
[1744506766875,0.30769464,597.92,597.03,5.33699154]
[1744506767074,0.30769464,597.91,597.03,5.33699154]
[1744506767377,0.30769464,597.9,597.03,5.33699154]
[1744506767576,0.30769464,597.89,597.03,5.33699154]
[1744506767775,0.30769464,597.88,597.03,5.33699154]
[1744506767976,0.29134016,597.94,597.03,5.33699154]
[1744506768176,0.30773935,597.93,597.03,5.33699154]
[1744506768376,0.30773935,597.92,597.03,5.33699154]
[1744506768570,0.30773935,597.91,597.03,5.33699154]
[1744506768772,0.30773935,597.9,597.03,5.33699154]
[1744506768973,0.30773935,597.89,597.03,5.33699154]
[1744506769172,0.30773935,597.88,597.03,5.33699154]
[1744506769371,0.30773935,597.87,597.03,5.33699154]
[1744506771174,0.29135602,597.88,597.03,5.33699154]
[1744506771477,0.30773661,597.87,597.03,5.33699154]
[1744506771772,0.30773661,597.86,597.03,5.33699154]
[1744506771974,0.30773661,598.04,597.03,5.33699154]
[1744506772171,0.30773661,598.03,597.03,5.33699154]
[1744506772370,0.30773661,598.02,597.03,5.33699154]
[1744506772572,0.2913487,598.03,597.03,5.33699154]
[1744506772876,0.30774786,598.02,597.03,5.33699154]
[1744506774477,0.30774786,598.14,597.03,5.33699154]
[1744506774676,0.29136334,598.01,597.03,5.33699154]
[1744506774873,0.30774786,598.0,597.03,5.33699154]
[1744506775076,0.30774786,598.14,597.03,5.33699154]
[1744506775277,0.30774786,598.13,597.03,5.33699154]
[1744506775473,0.30774786,598.12,597.03,5.33699154]
[1744506775777,0.30774786,598.11,597.03,5.33699154]
[1744506775977,0.30774786,598.1,597.03,5.33699154]
[1744506776277,0.30774786,598.09,597.03,5.33699154]
[1744506776577,0.30774786,598.08,597.03,5.33699154]
[1744506776873,0.30774786,598.07,597.03,5.33699154]
[1744506777076,0.30774786,598.06,597.03,5.33699154]
[1744506777276,0.30774786,598.05,597.03,5.33699154]
[1744506777473,0.30774786,598.3,597.03,5.33699154]
[1744506777673,0.29137676,598.05,597.03,5.33699154]
[1744506777877,0.30774786,598.04,597.03,5.33699154]
[1744506778175,0.30774786,598.03,597.03,5.33699154]
[1744506778373,0.30774786,598.23,597.03,5.33699154]
[1744506778575,0.64207302,598.22,597.03,5.33699154]
[1744506778778,0.29135968,598.02,597.03,5.33699154]
[1744506778977,0.30774786,598.01,597.03,5.33699154]
[1744506779176,0.33433075,598.21,597.03,5.33699154]
[1744506779477,0.30777833,598.2,597.03,5.33699154]
[1744506779676,0.64056682,598.35,597.03,5.33699154]
[1744506779677,0.64212026,598.19,597.03,5.33699154]
[1744506779875,0.64212585,598.18,597.03,5.33699154]
[1744506780074,0.64213144,598.17,597.03,5.33699154]
[1744506780377,0.64213703,598.16,597.03,5.33699154]
[1744506780577,0.64214261,598.15,597.03,5.33699154]
[1744506780876,0.30777833,598.14,597.03,5.33699154]
[1744506781078,0.30777833,598.13,597.03,5.33699154]
[1744506781271,0.30777833,598.12,597.03,5.33699154]
[1744506781476,0.30777833,598.11,597.03,5.33699154]
[1744506781675,0.30777833,598.1,597.03,5.33699154]
[1744506781875,0.30777833,598.09,597.03,5.33699154]
[1744506782074,0.30777833,598.08,597.03,5.33699154]
[1744506782275,0.30777833,598.07,597.03,5.33699154]
[1744506782475,0.30777833,598.06,597.03,5.33699154]
[1744506782772,0.30777833,598.05,597.03,5.33699154]
[1744506782977,0.30777833,598.04,597.03,5.33699154]
[1744506783283,0.30777833,598.03,597.03,5.33699154]
[1744506783474,0.30777833,598.02,597.03,5.33699154]
[1744506783673,0.30777833,598.01,597.03,5.33699154]
[1744506783877,0.30777833,598.0,597.03,5.33699154]
[1744506784176,0.30777833,597.99,597.03,5.33699154]
[1744506784378,1.57897816,597.98,597.03,5.33699154]
[1744506784577,0.30777833,597.97,597.03,5.33699154]
[1744506784776,0.30777833,597.96,597.03,5.33699154]
[1744506784979,0.30777833,597.95,597.03,5.33699154]
[1744506785172,0.30774053,597.94,597.03,5.33699154]
[1744506785372,0.30774053,597.93,597.03,5.33699154]
[1744506785573,0.30774053,597.92,597.03,5.33699154]
[1744506785774,0.30774053,597.91,597.03,5.33699154]
[1744506785978,0.30774053,597.9,597.03,5.33699154]
[1744506786277,0.30774053,597.89,597.03,5.33699154]
[1744506786472,0.30774053,597.97,597.03,5.33699154]
[1744506786673,0.30774053,597.88,597.03,5.33699154]
[1744506786873,0.30774053,597.87,597.03,5.33699154]
[1744506787079,0.30774053,597.98,597.03,5.33699154]
[1744506787277,0.30774053,597.97,597.03,5.33699154]
[1744506787578,0.30774053,597.96,597.03,5.33699154]
[1744506787880,0.30774053,597.95,597.03,5.33699154]
[1744506788079,0.30774053,597.94,597.03,5.33699154]
[1744506788280,0.30774053,597.93,597.03,5.33699154]
[1744506788574,0.30774053,597.92,597.03,5.33699154]
[1744506788878,0.30774053,597.91,597.03,5.33699154]
[1744506789179,0.30774053,597.9,597.03,5.33699154]
[1744506789377,0.30774053,597.98,597.03,5.33699154]
[1744506789577,0.30774053,597.97,597.03,5.33699154]
[1744506789874,0.30774053,597.96,597.03,5.33699154]
[1744506790079,0.30774053,597.95,597.03,5.33699154]
[1744506790279,0.30774053,597.98,597.03,5.33699154]
[1744506790578,0.30774053,597.97,597.03,5.33699154]
[1744506790779,0.30774053,597.96,597.03,5.33699154]
[1744506790979,0.30774053,597.95,597.03,5.33699154]
[1744506791179,0.30774053,597.94,597.03,5.33699154]
[1744506791473,0.30774053,597.96,597.03,5.33699154]
[1744506791678,0.30774256,597.95,597.03,5.33699154]
[1744506791880,0.30774256,597.94,597.03,5.33699154]
[1744506792175,0.30774256,597.93,597.03,5.33699154]
[1744506792381,0.30774256,597.96,597.03,5.33699154]
[1744506792581,0.29137066,597.92,597.03,5.33699154]
[1744506792880,0.30774256,597.91,597.03,5.33699154]
[1744506793180,0.29137066,597.92,597.03,5.33699154]
[1744506793374,0.3077443,597.91,597.03,5.33699154]
[1744506793579,0.3077443,597.9,597.03,5.33699154]
[1744506793774,0.3077443,597.89,597.03,5.33699154]
[1744506793979,0.3077443,597.88,597.03,5.33699154]
[1744506794181,0.3077443,597.87,597.03,5.33699154]
[1744506794481,0.3077443,597.86,597.03,5.33699154]
[1744506794683,0.3077443,597.85,597.03,5.33699154]
[1744506794881,0.3077443,597.91,597.03,5.33699154]
[1744506795082,0.3077443,597.9,597.03,5.33699154]
[1744506795282,0.3077443,597.89,597.03,5.33699154]
[1744506795482,1.57894413,597.88,597.03,5.33699154]
[1744506795682,0.3077443,597.87,597.03,5.33699154]
[1744506796485,0.29138163,597.86,597.03,5.33699154]
[1744506796686,0.3077443,597.85,597.03,5.33699154]
[1744506797881,0.29138163,597.86,597.03,5.33699154]
[1744506798087,0.3077374,597.85,597.03,5.33699154]
[1744506798586,0.3077374,597.94,597.03,5.33699154]
[1744506798881,0.3077374,597.93,597.03,5.33699154]
[1744506799081,0.3077374,597.92,597.03,5.33699154]
[1744506799285,0.30773451,597.91,597.03,5.33699154]
[1744506799485,0.30773451,597.9,597.03,5.33699154]
[1744506800188,1.57893434,597.9,597.03,5.33699154]
[1744506800388,0.30773451,597.89,597.03,5.93099154]
[1744506801590,0.29137919,597.88,597.03,5.93099154]
[1744506801789,0.30773451,597.87,597.03,5.93099154]
[1744506804590,0.30773451,597.9,597.03,5.93099154]
[1744506804794,0.30773451,597.89,597.03,5.93099154]
[1744506805094,0.30773451,597.9,597.03,5.93099154]
[1744506805295,0.30773451,597.89,597.03,5.93099154]
[1744506805495,0.2913731,597.89,597.03,5.93099154]
[1744506805696,0.30773451,597.88,597.03,5.93099154]
[1744506806089,0.30771906,597.87,597.03,5.93099154]
[1744506806294,0.30771906,597.88,597.03,5.93099154]
[1744506806489,0.30771906,597.87,597.03,5.93099154]
[1744506806797,0.30771906,597.88,597.03,5.93099154]
[1744506806989,0.30771906,597.87,597.03,5.93099154]
[1744506807190,0.30771906,597.86,597.03,5.93099154]
[1744506807395,0.30771906,597.85,597.03,5.93099154]
[1744506807587,0.30771906,597.84,597.03,5.596]
[1744506807789,1.27119983,597.94,597.03,5.596]
[1744506807991,0.30771906,597.93,597.03,5.596]
[1744506808193,0.30771906,597.92,597.03,5.596]
[1744506808396,0.30771906,597.93,597.03,5.596]
[1744506808695,0.29138651,597.91,597.03,5.596]
[1744506808895,0.30771906,597.9,597.03,5.596]
[1744506809600,0.30771906,597.89,597.03,5.596]
[1744506809799,0.30771906,597.88,597.03,5.596]
[1744506809999,0.30771906,597.87,597.03,5.596]
[1744506810200,0.30771906,597.9,597.03,5.596]
[1744506810401,0.30771906,597.89,597.03,5.596]
[1744506810600,0.30771906,597.88,597.03,5.596]
[1744506810902,0.30771906,597.87,597.03,5.596]
[1744506811097,0.30771906,597.91,597.03,5.596]
[1744506811307,0.30771906,597.9,597.03,5.596]
[1744506811509,0.29138895,597.86,597.03,5.596]
[1744506811703,0.30771906,597.85,597.03,5.596]
[1744506812404,0.29138895,597.86,597.03,5.596]
[1744506812609,0.3077485,597.85,597.03,5.596]
[1744506813610,0.3077485,597.89,597.03,5.596]
[1744506813809,0.3077485,597.88,597.03,5.596]
[1744506814107,0.3077485,597.89,597.03,5.596]
[1744506814310,0.3077485,597.88,597.03,5.596]
[1744506814503,0.29139139,597.88,597.03,5.596]
[1744506814707,0.3077485,597.87,597.03,5.596]
[1744506815210,1.27119983,597.85,597.03,5.596]
[1744506815410,0.3077485,597.84,597.03,5.596]
[1744506815710,0.30773658,597.83,597.03,5.596]
[1744506815910,0.30773658,597.84,597.03,5.596]
[1744506817410,0.29139261,597.83,597.03,5.596]
[1744506817610,0.30773658,597.82,597.03,5.596]
[1744506818912,0.30771175,597.81,597.03,5.596]
[1744506819207,0.30771175,597.82,597.03,5.596]
[1744506819410,1.27119983,597.88,597.03,5.596]
[1744506819611,0.30772556,597.87,597.03,5.596]
[1744506820414,0.29137676,597.86,597.03,5.596]
[1744506822214,1.27119983,598.53,597.03,5.596]
[1744506822415,0.3077106,598.52,597.03,5.596]
[1744506822710,0.59900809,598.52,597.03,5.596]
[1744506822914,0.3077106,598.51,597.03,5.596]
[1744506825315,0.30771087,598.5,597.03,5.596]
[1744506825509,0.30771087,598.49,597.03,5.596]
[1744506825710,0.29129871,598.5,597.03,5.596]
[1744506825909,0.30771087,598.49,597.03,5.596]
[1744506826816,0.29129871,598.5,597.03,5.596]
[1744506827017,0.30771038,598.49,597.03,5.596]
[1744506828416,0.29129871,598.5,597.03,5.596]
[1744506828618,1.57891338,598.49,597.03,5.596]
[1744506828816,0.30771355,598.48,597.03,5.596]
[1744506829315,1.27119983,598.49,597.03,5.596]
[1744506829316,0.30771355,598.47,597.03,5.596]
[1744506829516,0.30771355,598.46,597.03,5.596]
[1744506829716,0.30771355,598.45,597.03,5.596]
[1744506830017,1.27119983,598.49,597.03,5.596]
[1744506830217,0.30772034,598.48,597.03,5.596]
[1744506830418,0.33419109,598.46,597.03,5.596]
[1744506830718,0.30772034,598.45,597.03,5.596]
[1744506831017,0.33420784,598.43,597.03,5.596]
[1744506831217,0.30772034,598.42,597.03,5.596]
[1744506831412,0.64193935,598.41,597.03,5.596]
[1744506831610,1.27119983,598.05,597.03,5.596]
[1744506831812,0.30771883,598.04,597.03,5.596]
[1744506833214,1.27119983,598.05,597.03,5.596]
[1744506833419,0.30771884,598.04,597.03,5.596]
[1744506833915,1.27119983,597.97,597.03,5.596]
[1744506834118,0.30771884,597.96,597.03,5.596]
[1744506834614,0.29136578,597.95,597.03,5.596]
[1744506834817,0.30771884,597.94,597.03,5.596]
[1744506835119,0.30772704,597.93,597.03,5.596]
[1744506835319,0.30772704,597.94,597.03,5.596]
[1744506835519,0.30772704,597.93,597.03,5.596]
[1744506835815,0.29136578,597.95,597.03,5.596]
[1744506835816,0.30772704,597.94,597.03,5.596]
[1744506836019,0.30772704,597.93,597.03,5.596]
[1744506836319,0.29136578,597.95,597.03,5.596]
[1744506836320,0.30772704,597.92,597.03,5.596]
[1744506836519,0.29136578,597.95,597.03,5.596]
[1744506836819,0.30772227,597.94,597.03,5.596]
[1744506838323,0.30772674,597.93,597.03,5.596]
[1744506838522,0.30772674,597.94,597.03,5.596]
[1744506839920,0.30772257,597.93,597.03,5.596]
[1744506840115,0.30772257,597.94,597.03,5.596]
[1744506840322,0.30772257,597.93,597.03,5.596]
[1744506840518,0.30772257,598.09,597.03,5.596]
[1744506840717,0.29138529,597.93,597.03,5.596]
[1744506840921,0.30772257,597.92,597.03,5.596]
[1744506841217,0.30772257,597.91,597.03,5.596]
[1744506841423,0.30772257,597.9,597.03,5.596]
[1744506841622,0.30772257,598.07,597.03,5.596]
[1744506841822,0.291367,597.9,597.03,5.596]
[1744506842023,0.30772257,597.89,597.03,5.596]
[1744506842218,0.30772257,598.07,597.03,5.596]
[1744506842417,0.30772257,598.06,597.03,5.596]
[1744506842619,1.27119983,598.08,597.03,5.596]
[1744506842820,0.30772809,598.07,597.03,5.596]
[1744506843223,0.29135236,598.06,597.03,5.596]
[1744506843423,0.30772809,598.05,597.03,5.596]
[1744506844223,0.29135236,598.06,597.03,5.596]
[1744506844424,0.3077178,598.05,597.03,5.596]
[1744506845826,0.29135236,598.06,597.03,5.596]
[1744506846026,0.30771724,598.05,597.03,5.596]
[1744506846527,0.2913548,598.04,597.03,5.596]
[1744506847025,0.30771724,598.03,597.03,5.596]
[1744506847219,0.30771724,598.02,597.03,5.596]
[1744506847421,0.30771724,598.01,597.03,5.596]
[1744506847622,0.30771724,598.0,597.03,5.596]
[1744506847824,0.30771724,597.99,597.03,5.596]
[1744506848026,0.30771724,597.98,597.03,5.596]
[1744506848229,0.30771724,597.97,597.03,5.596]
[1744506848423,0.30771724,597.96,597.03,5.596]
[1744506848625,0.30771724,597.95,597.03,5.596]
[1744506848825,0.30771724,597.94,597.03,5.596]
[1744506849026,0.30771724,597.93,597.03,5.596]
[1744506849225,0.30771724,597.92,597.03,5.596]
[1744506849426,0.30771724,597.91,597.03,5.596]
[1744506849726,0.30771724,597.9,597.03,5.596]
[1744506849920,0.30771724,598.06,597.03,5.596]
[1744506850527,0.29135358,598.05,597.03,5.596]